Cogmind - Beta 13 @@@ ROGUE MODE // 2024.04.27 @ 16:48:21 Player: MO-55 Result: Escaped! Performance ------------- Evolutions (9) 4500 Regions Visited (27) 5400 Robots Destroyed (263) 1315 Value Destroyed (13974) 13974 Prototype IDs (70) 1400 Alien Tech Used (3) 600 Bonus (9681) 9681 TOTAL SCORE: 36870 Bonus ------- High Alert Combat Kills 999 Follower Combat Kills 754 Met Data Miner 300 Met R17 at Cetus 500 Met R17 at Research 2000 Scanned by Researcher 500 Acquired SGEMP 2000 Win 3000 Friendly Fire -372 Cogmind --------- Core Integrity 1358/1600 Matter 276/300 Energy 244/260 System Corruption 18% Temperature Cool (10) Movement Walking (110) Location To Epsilon Eridani Parts ------- > --- POWER (3) -------- Light Particle Reactor Light Particle Reactor > --- PROPULSION (6) --- Biometal Leg Biometal Leg Enhanced Biometal Leg Enhanced Biometal Leg Centrium Leg Centrium Leg > --- UTILITY (13) ----- Huge Storage Unit Experimental Optical Array Advanced Signal Interpreter Nanoactuators Nanoactuators Layered Medium Armor Plating Layered Medium Armor Plating Layered Medium Armor Plating (fused) Centrium Light Armor Plating Centrium Medium Armor Plating Advanced Thermal Shield Advanced System Shield > --- WEAPON (4) ------- Plasma Lance Plasma Lance Enhanced Force Lance Enhanced Force Lance > --- INVENTORY (25) --- Light Quantum Reactor Light Quantum Reactor High-density Centrium Leg High-density Centrium Leg Huge Storage Unit Advanced Sensor Array Advanced Transmission Jammer Experimental Shield Generator Enhanced Nova Cannon Tactical Quantum Warhead Tactical Quantum Warhead RU-N14's Throwing Claymores (4) Portable AFG (100) SGEMP Prototype Peak State ------------ > --- POWER ------------ Light Particle Reactor Light Quantum Reactor Light Quantum Reactor > --- PROPULSION ------- Biometal Leg Biometal Leg Biometal Leg Biometal Leg Biometal Leg Enhanced Biometal Leg > --- UTILITY ---------- Huge Storage Unit Machine Analyzer Experimental Optical Array Advanced Signal Interpreter Nanoactuators Nanoactuators Advanced Transmission Jammer Layered Medium Armor Plating Layered Medium Armor Plating Centrium Medium Armor Plating Centrium Medium Armor Plating Experimental Shield Generator Advanced System Shield > --- WEAPON ----------- Ionic Axe Plasma Lance Plasma Lance Enhanced Force Lance > --- INVENTORY -------- Light Quantum Reactor Light Quantum Reactor Enhanced Biometal Leg Centrium Leg Centrium Leg High-density Centrium Leg High-density Centrium Leg Large Storage Unit Advanced Sensor Array Layered Medium Armor Plating Layered Medium Armor Plating Layered Medium Armor Plating Centrium Light Armor Plating Advanced Thermal Shield Experimental Shield Generator Enhanced Nova Cannon Tactical Quantum Warhead Tactical Quantum Warhead RU-N14's Throwing Claymores Enhanced Force Lance Portable AFG SGEMP Prototype [Rating: 205] Favorites ----------- Power Improved Deuterium Engine Engine Improved Deuterium Engine Power Core Neutrino Core Reactor Light Antimatter Reactor Propulsion Medium Treads Treads Medium Treads Leg Myomer Leg Hover Unit Cooled Gravmag System Utility Huge Storage Unit Device Improved Terrain Scanner Storage Huge Storage Unit Processor Armor Integrity Analyzer Hackware Advanced System Shield Protection Centrium Medium Armor Plating Weapon Power Sword Energy Gun Phase Gun Energy Cannon Advanced Plasma Cannon Ballistic Gun Gauss Rifle Ballistic Cannon Assault Cannon Launcher Heavy Shock Bomb Launcher Special Weapon RU-N14's Throwing Claymores Impact Weapon Makeshift Hammer Slashing Weapon Power Sword Piercing Weapon Enhanced Force Lance Build | -11 -10 -10 -8 -7 -7 -7 -7 -6 -6 -6 -6 -6 -5 -5 -5 -5 -4 -4 -4 -4 -4 -4 -3 -3 -2 -2 -1 ------- Run | Yrd Mat Sub Mat Fac Low Low Zio Pro Fac Low Low Dat Pro Fac Ext Cet Fac Was Fac Upp Upp Zhi Pro Res Res Tes Acc Slots Evolved 18 | . . . 4 2 . . . . 2 . . . . 2 . . 2 . . . . . . 2 2 . 2 Power 1 | . . . . . . . . . . . . . . 1 . . . . . . . . . . . . . Propulsion 4 | . . . 1 1 . . . . . . . . . . . . 1 . . . . . . 1 . . . Utility 11 | . . . 3 1 . . . . 1 . . . . . . . 1 . . . . . . 1 2 . 2 Weapon 2 | . . . . . . . . . 1 . . . . 1 . . . . . . . . . . . . . Parts Attached 427 | 7 7 9 18 14 4 6 8 . 16 7 4 . 8 18 28 10 9 2 56 28 5 5 19 39 14 41 45 Power 50 | 1 1 1 2 2 . . 1 . . . . . 1 4 7 2 . 1 3 4 1 . 4 4 1 7 3 Engine 12 | 1 1 1 1 2 . . 1 . . . . . 1 2 2 . . . . . . . . . . . . Core 13 | . . . 1 . . . . . . . . . . 2 5 1 . . . 2 1 . 1 . . . . Reactor 25 | . . . . . . . . . . . . . . . . 1 . 1 3 2 . . 3 4 1 7 3 Propulsion 96 | 2 . 2 2 5 . . 4 . . 3 . . 1 4 6 3 1 1 13 8 1 3 6 8 . 8 15 Treads 41 | . . 2 2 5 . . 4 . . 3 . . 1 3 5 2 1 1 12 . . . . . . . . Leg 53 | 2 . . . . . . . . . . . . . 1 1 1 . . 1 8 1 1 6 8 . 8 15 Wheel . | . . . . . . . . . . . . . . . . . . . . . . . . . . . . Hover 2 | . . . . . . . . . . . . . . . . . . . . . . 2 . . . . . Flight . | . . . . . . . . . . . . . . . . . . . . . . . . . . . . Utility 182 | 2 2 1 11 4 2 . . . 12 3 4 . 4 7 9 5 6 . 23 10 3 2 4 17 12 18 21 Device 111 | 1 . 1 6 1 1 . . . 8 2 2 . 3 4 8 4 5 . 16 9 3 1 3 10 6 10 7 Storage 6 | 1 2 . 1 . . . . . 1 . . . . . . . . . . . . . . . . . 1 Processor 14 | . . . 1 2 . . . . . . 1 . . 1 . . 1 . 2 . . . . 3 . 1 2 Hackware 4 | . . . . . . . . . . . . . . 1 . . . . . . . . . 1 2 . . Protection 47 | . . . 3 1 1 . . . 3 1 1 . 1 1 1 1 . . 5 1 . 1 1 3 4 7 11 Artifact . | . . . . . . . . . . . . . . . . . . . . . . . . . . . . Weapon 99 | 2 4 5 3 3 2 6 3 . 4 1 . . 2 3 6 . 2 . 17 6 . . 5 10 1 8 6 Energy Gun 23 | 2 3 . 2 . . . 1 . . . . . 1 . 2 . 1 . 9 2 . . . . . . . Energy Cannon 9 | . 1 1 . . . . 1 . . . . . 1 . 1 . . . . . . . . . . 3 1 Ballistic Gun 15 | . . 2 1 2 1 3 . . 2 . . . . . . . . . 4 . . . . . . . . Ballistic Cannon 7 | . . 2 . . . . . . 1 . . . . 2 2 . . . . . . . . . . . . Launcher 4 | . . . . . . 1 . . . . . . . . . . . . 1 . . . . 1 . . 1 Special Weapon 6 | . . . . . . . . . . . . . . . . . 1 . 3 . . . 2 . . . . Impact Weapon 2 | . . . . . . . . . . . . . . . . . . . . 1 . . 1 . . . . Slashing Weapon 25 | . . . . 1 1 2 1 . 1 1 . . . 1 1 . . . . 2 . . 2 6 . 5 1 Piercing Weapon 8 | . . . . . . . . . . . . . . . . . . . . 1 . . . 3 1 . 3 Special Melee Weapon . | . . . . . . . . . . . . . . . . . . . . . . . . . . . . Unidentified Prototypes 34 | . . . 1 . . . . . . . . . . 1 1 2 2 . 3 1 . 5 . 8 1 6 3 Parts Lost 127 | . 1 2 1 . 1 . . . 1 5 2 . 5 10 7 7 . . 32 12 3 . 10 3 3 11 11 Power 18 | . 1 1 . . . . . . . . . . 1 1 1 2 . . 2 3 1 . 2 . 1 2 . Propulsion 40 | . . . 1 . . . . . . 3 . . 1 5 1 3 . . 8 5 1 . 5 2 . 1 4 Utility 46 | . . 1 . . 1 . . . . 1 2 . 1 3 2 2 . . 12 2 1 . 3 . 2 8 5 Weapon 23 | . . . . . . . . . 1 1 . . 2 1 3 . . . 10 2 . . . 1 . . 2 Highest Loss Streak 16 | . 1 1 1 . 1 . . . 1 5 2 . 5 5 3 4 . . 16 5 2 . 5 2 2 5 5 To Critical Strikes . | . . . . . . . . . . . . . . . . . . . . . . . . . . . . Average Slot Usage (%) 93 | . 98 99 90 98 99 100 93 92 94 99 100 100 99 93 93 76 70 73 85 86 96 93 93 91 93 94 95 Engine 4 | . 12 13 8 7 7 7 8 14 10 6 6 6 6 9 3 . . . . . . . . . . . . Core 1 | . . . . . . . . . . . . . . 1 6 9 5 2 . 3 8 10 4 . . . . Reactor 3 | . . . . . . . . . . . . . . . . . 5 7 9 6 1 . 6 12 11 10 7 Treads 16 | . . 28 27 29 30 30 29 28 25 26 26 26 26 18 20 16 15 15 19 10 . . . . . . . Leg 8 | . 28 . . . . . . . . . . . . . 1 . . . . 9 25 25 22 26 25 24 22 Device 16 | . 14 13 17 10 11 15 14 14 17 13 13 13 12 17 14 17 22 21 16 23 22 20 22 15 14 16 17 Storage 6 | . 14 14 9 7 7 7 7 7 6 6 6 6 6 5 5 5 5 5 5 5 5 5 5 4 4 4 3 Processor 10 | . . . 3 18 23 23 22 21 18 20 20 20 20 11 11 10 6 10 9 9 5 5 5 6 8 6 7 Protection 4 | . . . 6 7 2 . . . . 5 6 6 6 3 2 5 5 5 4 . 5 7 7 7 4 7 15 Energy Gun 3 | . 18 . 8 3 . . 1 . . . . . 4 2 . 5 5 5 10 8 . . . . . . . Energy Cannon 2 | . 9 13 . . . . 1 7 4 . . . 4 4 4 . . . . . . . . . . . . Ballistic Gun 3 | . . 11 9 10 14 8 . . 2 6 6 6 6 2 . . . . 5 . . . . . . . . Ballistic Cannon 1 | . . 3 . . . . . . . 6 6 6 1 6 9 . . . . . . . . . . . . Slashing Weapon 3 | . . . . . . 5 5 . 5 5 6 6 1 4 2 . . . . 3 10 10 10 10 8 7 3 Piercing Weapon 1 | . . . . . . . . . . . . . . . . . . . . 1 5 5 4 1 8 8 10 Naked Turns . | . . . . . . . . . . . . . . . . . . . . . . . . . . . . Heaviest Build 179 | 12 31 38 59 62 62 62 71 71 114 108 108 107 114 140 142 146 150 147 153 141 136 127 161 179 156 168 178 Greatest Support 187 | 20 20 40 60 112 112 112 112 112 112 112 112 112 112 112 92 130 187 187 177 170 120 115 115 150 150 170 176 Greatest Overweight (x) 9 | 2 1 . . . . . . . 1 . . . 1 5 9 1 . . 1 1 1 1 2 1 1 1 1 Average Overweight (x) . | . . . . . . . . . . . . . . 1 1 1 . . . . . 1 1 . . . . Largest Inventory Capacity 25 | 8 15 15 20 20 20 20 20 20 25 25 25 25 25 25 25 25 25 25 25 25 25 25 25 25 25 25 25 Average Capacity 22 | 7 12 15 19 20 20 20 20 20 21 25 25 25 25 25 25 25 25 25 25 25 25 25 25 25 25 25 25 Most Carried 25 | 5 15 15 20 20 20 20 20 20 24 25 25 25 25 23 25 25 25 25 25 23 25 25 25 25 25 25 25 Average Carried 20 | 3 10 14 13 19 19 20 19 20 20 22 24 25 21 19 23 22 22 24 22 19 22 24 20 22 21 23 21 Final Capacity 25 | 8 15 15 20 20 20 20 20 20 25 25 25 25 25 25 25 25 25 25 25 25 25 25 25 25 25 25 25 Final Carried 25 | 5 15 11 19 18 20 20 20 20 22 25 25 25 20 21 23 20 23 25 23 17 25 25 17 22 25 23 15 Class Distribution -------------------- 27% | Mutant 16% | Scavenger-Mutant 10% | Scavenger-Assassin 9% | Scavenger-Gladiator 8% | Scavenger-Tank 7% | Scavenger-Skirmisher 6% | Skirmisher 4% | Scavenger-Gunner 3% | Assassin Dominant Class ---------------- Mutant | -10/Materials Mutant | -10/Subcaves Mutant | -8/Materials Scavenger-Mutant | -7/Factory Skirmisher | -7/Lower Caves Assassin | -7/Lower Caves Scavenger-Assassin | -7/Zion Scavenger-Skirmisher | -6/Proximity Caves Scavenger-Assassin | -6/Factory Mutant | -6/Lower Caves Mutant | -6/Lower Caves Mutant | -6/Data Miner Skirmisher | -5/Proximity Caves Skirmisher | -5/Factory Scavenger-Gunner | -5/Extension Scavenger-Tank | -5/Cetus Scavenger-Tank | -4/Factory Scavenger-Skirmisher | -4/Waste Scavenger-Tank | -4/Factory Scavenger-Skirmisher | -4/Upper Caves Scavenger-Mutant | -4/Upper Caves Scavenger-Mutant | -4/Zhirov Scavenger-Mutant | -3/Proximity Caves Scavenger-Assassin | -3/Research Scavenger-Gladiator | -2/Research Scavenger-Gladiator | -2/Testing Scavenger-Gladiator | -1/Access Resources | -11 -10 -10 -8 -7 -7 -7 -7 -6 -6 -6 -6 -6 -5 -5 -5 -5 -4 -4 -4 -4 -4 -4 -3 -3 -2 -2 -1 ----------- Run | Yrd Mat Sub Mat Fac Low Low Zio Pro Fac Low Low Dat Pro Fac Ext Cet Fac Was Fac Upp Upp Zhi Pro Res Res Tes Acc Matter Collected 6602 | 270 70 177 350 314 113 48 91 66 189 129 91 . 140 398 587 167 73 37 1101 347 126 114 231 412 139 408 414 Remotely . | . . . . . . . . . . . . . . . . . . . . . . . . . . . . Salvage Created 16353 | 82 526 215 573 307 191 365 . 134 526 107 53 . 120 657 542 598 124 1380 3177 512 520 257 914 622 645 2111 1095 Parts 664 | 6 34 13 29 13 11 11 . 4 25 7 . . 7 26 15 18 1 23 133 20 14 1 34 18 30 102 69 Haulers Intercepted 5 | . 2 . . . . . . . . . . . . 1 . . . . . . . . . . . . 2 Recyclers Shooed 8 | 1 1 . . . . . . . . . . . . 3 1 . . . 2 . . . . . . . . Parts Field Recycled . | . . . . . . . . . . . . . . . . . . . . . . . . . . . . Retrieved Matter . | . . . . . . . . . . . . . . . . . . . . . . . . . . . . Parts Self-Destructed 98 | . . . . . 9 1 . 20 . 4 5 . 7 . . . . . . 18 8 . 26 . . . . Prevented 1 | . . . . . . . . . . . 1 . . . . . . . . . . . . . . . . Kills | -11 -10 -10 -8 -7 -7 -7 -7 -6 -6 -6 -6 -6 -5 -5 -5 -5 -4 -4 -4 -4 -4 -4 -3 -3 -2 -2 -1 ------- Run | Yrd Mat Sub Mat Fac Low Low Zio Pro Fac Low Low Dat Pro Fac Ext Cet Fac Was Fac Upp Upp Zhi Pro Res Res Tes Acc Combat Hostiles Destroyed 215 | . 10 5 11 6 4 4 . 2 7 3 . . 3 12 7 8 1 5 51 7 7 . 16 3 7 21 15 Melee 67 | . . . . . . . . . . . . . . . . . . . . 4 7 . 10 3 7 21 15 Guns 84 | . 8 1 11 6 4 1 . . 2 1 . . 3 . . 6 1 4 34 2 . . . . . . . Cannons 37 | . 2 4 . . . . . 2 5 1 . . . 10 7 . . . 4 . . . 2 . . . . AOE 18 | . . . . . . 3 . . . 1 . . . . . . . . 10 . . . 4 . . . . Classes Destroyed 27 | 1 6 1 3 . 2 . . . 1 . . . . . . 1 1 1 5 . . . . 1 . 3 1 Worker 4 | . . . . . . . . . . . . . . . . . . . 3 . . . . . . 1 . Builder 7 | . 1 . . . . . . . 1 . . . . 1 . . . . 3 . . . . 1 . . . Tunneler 7 | 4 . . 1 . . . . . . . . . . . . . . . 2 . . . . . . . . Hauler 5 | . 2 . . . . . . . . . . . . 1 . . . . . . . . . . . . 2 Recycler 11 | . 1 . . 1 . . . . 1 . . . . . 1 . . . 1 . . . . 3 . 2 1 Mechanic 3 | . . . . . . . . . . . . . . . . . 1 . 2 . . . . . . . . Operator 2 | . 2 . . . . . . . . . . . . . . . . . . . . . . . . . . Watcher 3 | . . . 2 . . . . . . . . . . . . . . . . . . . . . 1 . . Swarmer 51 | . 6 . . 4 3 4 . . 1 3 . . . 4 . . . . 10 . . . 6 . . . 10 Saboteur 1 | . . . . . . . . . . . . . . . . . . . 1 . . . . . . . . Grunt 65 | . 4 . 9 . . . . 2 2 . . . . . 6 . . . 19 2 3 . 8 . . 8 2 Brawler 2 | . . . . . . . . . . . . . . . . . . . 1 1 . . . . . . . Duelist 6 | . . . 1 . . . . . . . . . . . . . . . 2 2 . . 1 . . . . Protector 1 | . . . . . . . . . . . . . . . . . . . 1 . . . . . . . . Researcher 4 | . . . . . . . . . . . . . . . . . . . . . . . . . . 4 . Sentry 15 | . . . 1 2 . . . . . . . . . 2 1 . 1 . 2 1 . . 1 . 3 . 1 Demolisher 1 | . . . . . . . . . . . . . . . . . . . . . . . . 1 . . . Specialist 2 | . . . . . . . . . . . . . . . . . . . 2 . . . . . . . . Hunter 21 | . . . . . . . . . 4 . . . 1 1 . . . . 6 1 . . . 2 2 4 . Programmer 21 | . . . . . 1 . . . . . . . 2 5 . . . . 6 . . . . . 2 5 . Heavy 1 | . . . . . . . . . . . . . . . . . . . 1 . . . . . . . . Q-Series 2 | . . . . . . . . . . . . . . . . . . . . . . . . . . . 2 Compactor 5 | . . . . . . . . . . . . . . . . . . 5 . . . . . . . . . Cetus Guard 8 | . . . . . . . . . . . . . . . . 8 . . . . . . . . . . . Striker 2 | . . . . . . . . . . . . . . . . . . . . . . . . . . 2 . Alpha 7 2 | . . . . . . . . . . . . . . . . . . . . . . . . . . 2 . Subdweller 5 | . . 5 . . . . . . . . . . . . . . . . . . . . . . . . . Samaritan 9 | . . . . . 2 5 . . . 1 1 . . . . . . . . . . . . . . . . Thug 4 | . . . . . . . . . . . . . . . . . . . . . 4 . . . . . . Savage 1 | . . . . . . . . . . . . . . . . 1 . . . . . . . . . . . Butcher 1 | . . . . . . . . . . . . . . . 1 . . . . . . . . . . . . Best Kill Streak 10 | 3 4 2 5 5 3 4 . 2 4 2 . . 1 5 3 4 1 5 10 3 4 . 4 5 3 4 5 Combat Bots Only 8 | . 3 2 5 5 3 4 . 2 3 2 . . 1 5 3 4 1 5 8 3 4 . 4 2 2 4 5 Max Kills in Single Turn 3 | 1 2 1 1 2 1 3 . 1 1 1 1 . 1 2 1 1 1 1 3 1 1 . 2 1 1 1 1 Gunslinging 1 | . 1 . . 1 . . . . . . . . . . . . . . 1 . . . . . . . . Exploded 3 | . . . . . . 3 . . . 1 . . . . . . . . 2 . . . 2 . . . . Melee 1 | . . . . . . . . . . . . . . . . . . . . 1 1 . 1 1 1 1 1 Uniques/NPCs Destroyed . | . . . . . . . . . . . . . . . . . . . . . . . . . . . . Combat | -11 -10 -10 -8 -7 -7 -7 -7 -6 -6 -6 -6 -6 -5 -5 -5 -5 -4 -4 -4 -4 -4 -4 -3 -3 -2 -2 -1 -------- Run | Yrd Mat Sub Mat Fac Low Low Zio Pro Fac Low Low Dat Pro Fac Ext Cet Fac Was Fac Upp Upp Zhi Pro Res Res Tes Acc Hostile Shots Fired 2208 | . 36 11 54 66 15 5 . 7 89 25 15 . 60 135 75 111 6 1 505 116 39 . 145 94 52 247 299 Missed 583 | . 8 2 14 26 3 2 . 2 22 7 4 . 12 36 24 37 2 . 112 29 10 . 31 26 16 87 71 Damage Taken 28470 | . 390 244 628 394 183 44 . 86 1143 263 193 . 857 2005 1215 1616 59 31 7187 1825 402 . 1195 1364 724 2792 3630 Core 2630 | . 67 53 126 27 14 . . 15 170 18 56 . 42 261 93 149 17 . 440 266 43 . 203 42 . 286 242 Absorbed by Shields 1761 | . . . . . . . . . . . 6 . 83 . 24 . 22 . . . . . 456 296 . . 874 Reduced by Siege Mode 465 | . . . . . . . . . . . . . . . . . . . 465 . . . . . . . . Redirected to Shielding 239 | . . . 73 19 . . . . . . . . . . . . . . . . . . 126 21 . . . Ignored by Resistances 2327 | . . . . . . . . . . . . . . . . 372 13 11 591 . 149 . 712 273 . 184 22 Regen/Repaired (Parts) 470 | . . . . . . . 470 . . . . . . . . . . . . . . . . . . . . Core Remaining (%) 70 | 100 . 52 77 . . . . 92 . . . . 66 . . 49 . . . . . . 15 89 . 80 84 Volleys Fired 536 | 8 39 17 47 33 11 4 . 7 36 8 1 . 29 55 42 24 3 13 122 14 . . 3 . . 17 3 Largest 4 | 2 2 2 2 2 2 2 . 1 3 3 2 . 2 3 3 1 1 1 4 3 . . 1 . . 1 1 Hottest 262 | 80 100 110 94 94 57 57 . 40 100 100 72 . 113 190 212 250 250 250 262 251 . . . . . 120 120 Shots Fired 1009 | 16 76 27 90 48 17 6 . 7 49 16 2 . 52 72 80 23 3 13 358 31 . . 3 . . 17 3 Gun 723 | 16 60 9 90 48 17 4 . . 22 13 1 . 25 . . 23 3 13 348 31 . . . . . . . Cannon 271 | . 16 18 . . . . . 7 27 3 1 . 27 72 80 . . . . . . . . . . 17 3 Launcher 4 | . . . . . . 2 . . . . . . . . . . . . 2 . . . . . . . . Special 11 | . . . . . . . . . . . . . . . . . . . 8 . . . 3 . . . . Kinetic 417 | . . 15 50 43 17 6 . . 24 16 2 . 41 20 40 . . . 143 . . . . . . . . Thermal 514 | 8 27 12 40 5 . . . 7 25 . . . 11 52 40 23 3 13 205 31 . . . . . 9 3 Explosive 11 | . . . . . . . . . . . . . . . . . . . 8 . . . 3 . . . . Electromagnetic 67 | 8 49 . . . . . . . . . . . . . . . . . 2 . . . . . . 8 . Robot Hit Streak 26 | 5 10 9 19 10 9 4 . 5 8 11 1 . 11 17 8 12 5 6 26 10 . . 4 . . 8 . Robot Miss Streak 9 | 1 3 2 3 4 2 3 . 1 3 4 1 . 4 6 4 9 3 8 3 2 . . . . . 2 . Penetration Max 1 | . . . . . . . . . 1 . . . . . . . . . 1 . . . . . . . . Secondary Targets 19 | . 1 . 1 1 1 . . . 1 . . . . . . . . . 13 1 . . . . . . . Max Gunslinging Chain 1 | . 1 . 1 1 1 . . . 1 . . . . . . . . . 1 1 . . . . . . . Shots Hit Robots 944 | 10 43 16 61 23 13 14 . 3 29 11 2 . 29 43 33 22 3 13 262 34 23 6 45 15 28 108 55 Core Hits 494 | 5 21 7 27 15 7 11 . 3 14 3 1 . 7 16 15 43 6 18 129 14 13 2 27 9 14 45 22 Critical Kills 13 | . . . . . . . . . . . . . . 2 . . . . 11 . . . . . . . . Critical Parts Destroyed 20 | . . . . . . . . . 3 1 . . . . 1 . . . 14 . . . 1 . . . . Critical Strikes 112 | . . . 6 . . 1 . . 3 1 . . 1 4 2 . . . 39 7 6 . 7 3 6 16 10 Burn 18 | . . . 6 . . . . . . . . . 1 . . . . . 10 1 . . . . . . . Meltdown 2 | . . . . . . . . . . . . . . 2 . . . . . . . . . . . . . Destroy 31 | . . . . . . . . . 3 1 . . . . 1 . . . 26 . . . . . . . . Blast 3 | . . . . . . . . . . . . . . 2 1 . . . . . . . . . . . . Smash 1 | . . . . . . . . . . . . . . . . . . . . . . . 1 . . . . Sever 28 | . . . . . . 1 . . . . . . . . . . . . 3 2 6 . 5 2 2 6 1 Impale 29 | . . . . . . . . . . . . . . . . . . . . 4 . . 1 1 4 10 9 Melee Attacks 476 | . . . . 1 5 10 1 . . 10 1 . . 4 1 . . . . 22 31 8 59 34 37 159 93 Impact 17 | . . . . . . . . . . . . . . . . . . . . . 1 1 8 7 . . . Slashing 222 | . . . . 1 5 10 1 . . 10 1 . . 4 1 . . . . 10 26 7 47 26 10 49 14 Piercing 237 | . . . . . . . . . . . . . . . . . . . . 12 4 . 4 1 27 110 79 Sneak Attacks 36 | . . . . . 5 8 . . . 2 1 . . 2 1 . . . . . . . . 5 . 8 4 Combat Hostiles 1 | . . . . . . . . . . . . . . . . . . . . . . . . . . 1 . Follow-up Attacks 119 | . . . . . . . . . . . . . . . . . . . . 7 9 . 20 4 9 47 23 Damage Inflicted 38511 | 119 668 341 1184 471 554 951 . 194 906 356 102 . 646 1732 1160 2466 256 1537 9637 948 911 490 2372 861 1332 5558 2759 Guns 14964 | 119 461 90 1184 471 202 47 . . 324 189 . . 408 . . 2466 256 1537 6760 450 . . . . . . . Cannons 4271 | . 141 251 . . . . . 194 582 25 27 . 238 1502 1071 . . . . . . . . . . 240 . Explosions 3529 | . 58 . . . . 222 . . . . . . . . . . . . 2582 . . . 667 . . . . Melee 15328 | . . . . . 352 682 . . . 142 75 . . 230 89 . . . . 498 911 490 1589 861 1332 5318 2759 Ramming 8 | . 8 . . . . . . . . . . . . . . . . . . . . . . . . . . Kinetic 6807 | . . 179 639 386 202 269 . . 345 214 27 . 602 409 552 . . . 2983 . . . . . . . . Thermal 12203 | 67 289 162 545 85 . . . 194 561 . . . 44 1093 519 2466 256 1537 3935 450 . . . . . . . Explosive 2804 | . . . . . . . . . . . . . . . . . . . 2137 . . . 667 . . . . Electromagnetic 950 | 52 371 . . . . . . . . . . . . . . . . . 287 . . . . . . 240 . Impact 324 | . . . . . . . . . . . . . . . . . . . . . . . 238 86 . . . Slashing 7577 | . . . . . 352 682 . . . 142 75 . . 230 89 . . . 295 307 804 490 1377 707 303 1457 267 Piercing 7838 | . . . . . . . . . . . . . . . . . . . . 191 107 . 90 68 1029 3861 2492 Highest Corruption 32 | . 1 1 . 1 1 1 1 . . . . . 3 14 14 3 . 21 32 32 32 32 32 . 1 7 18 Average Corruption 11 | . 1 1 . 1 1 1 1 . . . . . 2 8 3 3 . 13 24 32 32 32 32 . 1 3 12 Corruption Purged 12 | . . . . . . . . . . . . . . . 12 . . . . . . . . . . . . Corruption Blocked 40 | . . . . . . . . . . . . . . . . . . . . . . . . . . 40 . Effects 420 | . . 15 . 4 3 3 2 . . . . . 7 19 44 14 . 8 95 65 41 18 45 . . 18 19 Message Errors 96 | . . 3 . . 1 2 . . . . . . 1 3 11 5 . 2 18 16 9 5 10 . . 5 5 Matter Fused 98 | . . 6 . 1 . . 1 . . . . . 3 4 15 2 . 1 15 12 10 6 13 . . 5 4 Heat Flow Errors 50 | . . 2 . 1 . . 1 . . . . . . 3 2 1 . 1 11 10 5 . 8 . . 2 3 Energy Discharges 49 | . . 1 . 1 . 1 . . . . . . . 3 7 1 . 1 12 10 3 1 2 . . 4 2 Parts Rejected 3 | . . . . . . . . . . . . . . 1 . . . . . . . . 1 . . 1 . Parts Fused 7 | . . . . . . . . . . . . . . 2 1 . . . 1 . 2 . . . . . 1 Data Loss (minor) 54 | . . . . 1 1 . . . . . . . . 2 4 3 . 3 11 9 6 5 7 . . 1 1 Data Loss (major) 17 | . . 2 . . . . . . . . . . 1 . . . . . 3 1 6 1 1 . . . 2 Misfires 14 | . . 1 . . . . . . . . . . 1 1 4 . . . 3 4 . . . . . . . Alerts 3 | . . . . . 1 . . . . . . . 1 . . 1 . . . . . . . . . . . Misdirections 8 | . . . . . . . . . . . . . . . . . . . 3 1 . . 3 . . . 1 Weapon Failures 21 | . . . . . . . . . . . . . . . . 1 . . 18 2 . . . . . . . Overload Shots 5 | . . . . . . . . . . . . . . . . . . . 2 3 . . . . . . . Overflow Damage 1478 | . 3 . . . 162 67 . 14 31 47 26 . . 183 . . . . 35 . . 287 166 12 73 292 80 Projectiles 156 | . 3 . . . . . . 14 31 . 26 . . 82 . . . . . . . . . . . . . Explosions 98 | . . . . . . 4 . . . . . . . . . . . . 35 . . . 59 . . . . Melee 1224 | . . . . . 162 63 . . . 47 . . . 101 . . . . . . . 287 107 12 73 292 80 Knockbacks 18 | . . 2 . . . . . . . . . . 1 5 7 . . . . . . . 3 . . . . Impact 3 | . . . . . . . . . . . . . . . . . . . . . . . 3 . . . . Kinetic 12 | . . 2 . . . . . . . . . . 1 3 6 . . . . . . . . . . . . Secondary 3 | . . . . . . . . . . . . . . 2 1 . . . . . . . . . . . . Self-Inflicted Damage 82 | . 46 . . . . . . . . . . . . . . . . . 36 . . . . . . . . Shots 3 | . 1 . . . . . . . . . . . . . . . . . 2 . . . . . . . . Rammed . | . . . . . . . . . . . . . . . . . . . . . . . . . . . . Targets Rammed 1 | . 1 . . . . . . . . . . . . . . . . . . . . . . . . . . Kicked 1 | . 1 . . . . . . . . . . . . . . . . . . . . . . . . . . Crushed . | . . . . . . . . . . . . . . . . . . . . . . . . . . . . Highest Temperature 619 | 54 312 257 357 226 . . 98 38 48 9 . . 210 262 619 541 52 327 310 199 253 . 245 185 . 368 200 Average Temperature 101 | 21 80 95 134 69 . . 49 20 13 6 . . 55 85 139 196 17 151 75 96 84 . 111 98 . 122 103 Received Heat Transfer 3981 | . 138 315 378 66 . . . 27 171 . . . . 126 414 207 12 . 1254 99 117 . 474 . 45 117 21 Effects 30 | . 3 . . . . . . . . . . . . 1 12 9 . 1 3 . . . . . . 1 . Shutdowns 10 | . . . . . . . . . . . . . . . 4 4 . 1 . . . . . . . 1 . Energy Bleed 3 | . . . . . . . . . . . . . . 1 1 1 . . . . . . . . . . . Interference 6 | . 3 . . . . . . . . . . . . . . . . . 3 . . . . . . . . Short Circuit 1 | . . . . . . . . . . . . . . . 1 . . . . . . . . . . . . Damage (minor) 3 | . . . . . . . . . . . . . . . 2 1 . . . . . . . . . . . Damage (major) 7 | . . . . . . . . . . . . . . . 4 3 . . . . . . . . . . . Siege Activations 7 | . . . . . . . . . . . . . . . . . . . 7 . . . . . . . . Total Turns 147 | . . . . . . . . . . . . . . . . . . . 147 . . . . . . . . Longest Duration 33 | . . . . . . . . . . . . . . . . . . . 33 . . . . . . . . Robots Corrupted 1 | . . . . . . . . . . . . . . . . . . . . . . . . . . 1 . Combat Hostiles . | . . . . . . . . . . . . . . . . . . . . . . . . . . . . Parts Fried 6 | . . . . . . . . . . . . . . 1 . . . . 1 . . . 2 . . 2 . Impact Corruptions 1 | . . . . . . . . . . . . . . . . . . . . . . . 1 . . . . Robots Melted 11 | . . . . . . . . . . . . . . 3 . 2 . 1 4 1 . . . . . . . Combat Hostiles 9 | . . . . . . . . . . . . . . 2 . 2 . 1 3 1 . . . . . . . Parts Melted 45 | . . . 3 1 . . . . . . . . 1 6 1 7 1 2 22 . . . 1 . . . . Heat Transferred 18829 | 150 596 259 1628 185 . . . . . . . . 200 1147 800 3625 375 2275 6812 777 . . . . . . . Parts Sabotaged 4 | . . . . . . . . . . . . . . . . . . . 4 . . . . . . . . Parts Stolen . | . . . . . . . . . . . . . . . . . . . . . . . . . . . . Parts Stripped . | . . . . . . . . . . . . . . . . . . . . . . . . . . . . Power Chain Reactions 2 | . 1 . . . . . . . . . . . . . . . . . 1 . . . . . . . . Alert | -11 -10 -10 -8 -7 -7 -7 -7 -6 -6 -6 -6 -6 -5 -5 -5 -5 -4 -4 -4 -4 -4 -4 -3 -3 -2 -2 -1 ------- Run | Yrd Mat Sub Mat Fac Low Low Zio Pro Fac Low Low Dat Pro Fac Ext Cet Fac Was Fac Upp Upp Zhi Pro Res Res Tes Acc Peak Influence 1164 | 20 278 . 259 149 . . . . 162 . . . . 193 394 70 89 . 1164 . . . . 232 215 352 407 Initial 148 | . 13 . . 2 . . . . 9 . . . . . 42 . 39 . . . . . . 141 . 24 148 Average 139 | 6 84 . 57 24 . . . . 41 . . . . 67 75 27 75 . 647 . . . . 47 93 121 313 Maximum Alert Level 4 | . 1 . 1 . . . . . . . . . . . 1 . . . 4 . . . . 1 1 1 2 Low Security (%) 80 | 100 89 . 96 100 . . . . 100 . . . . 100 94 100 100 100 13 . . . . 88 86 78 15 Level 1 9 | . 10 . 3 . . . . . . . . . . . 5 . . . 2 . . . . 11 13 21 79 Level 2 4 | . . . . . . . . . . . . . . . . . . . 42 . . . . . . . 5 Level 3 3 | . . . . . . . . . . . . . . . . . . . 34 . . . . . . . . Level 4 . | . . . . . . . . . . . . . . . . . . . 7 . . . . . . . . Level 5 . | . . . . . . . . . . . . . . . . . . . . . . . . . . . . High Security . | . . . . . . . . . . . . . . . . . . . . . . . . . . . . Max Security . | . . . . . . . . . . . . . . . . . . . . . . . . . . . . Squads Dispatched 34 | . 1 . 1 . . . . . 2 . . . . 2 3 . . . 13 . . . . 4 1 4 3 Investigation 6 | . . . . . . . . . 1 . . . . . 1 . . . 1 . . . . 3 . . . Extermination 10 | . . . . . . . . . . . . . . 2 . . . . 3 . . . . . 1 2 2 Reinforcement 12 | . 1 . 1 . . . . . 1 . . . . . 2 . . . 3 . . . . 1 . 2 1 Assault 6 | . . . . . . . . . . . . . . . . . . . 6 . . . . . . . . Garrison . | . . . . . . . . . . . . . . . . . . . . . . . . . . . . Intercept . | . . . . . . . . . . . . . . . . . . . . . . . . . . . . Searches Triggered . | . . . . . . . . . . . . . . . . . . . . . . . . . . . . Construction Impeded . | . . . . . . . . . . . . . . . . . . . . . . . . . . . . Haulers Reinforced 2 | . . . . . . . . . . . . . . . . . . . . . . . . 1 . . 1 Active Scanning Responses . | . . . . . . . . . . . . . . . . . . . . . . . . . . . . Cargo Convoy Interrupts . | . . . . . . . . . . . . . . . . . . . . . . . . . . . . Stealth | -11 -10 -10 -8 -7 -7 -7 -7 -6 -6 -6 -6 -6 -5 -5 -5 -5 -4 -4 -4 -4 -4 -4 -3 -3 -2 -2 -1 --------- Run | Yrd Mat Sub Mat Fac Low Low Zio Pro Fac Low Low Dat Pro Fac Ext Cet Fac Was Fac Upp Upp Zhi Pro Res Res Tes Acc Distress Signals 16 | . 2 . 2 . . . . . . . . . . . 3 2 . . 2 . . . . 5 . . . Communications Jammed 14 | . . . . . . . . . . . . . . 2 . . . . 1 . . . . . 11 . . Distress Signals 10 | . . . . . . . . . . . . . . 1 . . . . . . . . . . 9 . . Times Spotted 335 | . 25 5 20 6 4 2 . 8 8 3 2 . 3 14 27 10 1 6 78 8 7 . 23 18 9 29 19 Peak Tracking Total 9 | . 5 2 4 5 3 4 . 4 3 2 2 . 2 4 6 5 1 3 9 3 4 . 5 5 2 4 4 Tactical Retreats 25 | . 2 . 3 . . . . 1 . 1 . . . . 1 . . 1 9 . . . 5 . 1 . 1 Traps | -11 -10 -10 -8 -7 -7 -7 -7 -6 -6 -6 -6 -6 -5 -5 -5 -5 -4 -4 -4 -4 -4 -4 -3 -3 -2 -2 -1 ------- Run | Yrd Mat Sub Mat Fac Low Low Zio Pro Fac Low Low Dat Pro Fac Ext Cet Fac Was Fac Upp Upp Zhi Pro Res Res Tes Acc Traps Triggered 8 | . 2 . . 1 . . . . 1 . . . . . 2 . 1 . . . . . . . . 1 . Indirectly . | . . . . . . . . . . . . . . . . . . . . . . . . . . . . Trap Hack Attempts . | . . . . . . . . . . . . . . . . . . . . . . . . . . . . Triggered . | . . . . . . . . . . . . . . . . . . . . . . . . . . . . Disarmed . | . . . . . . . . . . . . . . . . . . . . . . . . . . . . Reprogrammed . | . . . . . . . . . . . . . . . . . . . . . . . . . . . . Reused . | . . . . . . . . . . . . . . . . . . . . . . . . . . . . Traps Extracted . | . . . . . . . . . . . . . . . . . . . . . . . . . . . . Installed . | . . . . . . . . . . . . . . . . . . . . . . . . . . . . Triggered 1 | . . . . . . . . . . 1 . . . . . . . . . . . . . . . . . Machines | -11 -10 -10 -8 -7 -7 -7 -7 -6 -6 -6 -6 -6 -5 -5 -5 -5 -4 -4 -4 -4 -4 -4 -3 -3 -2 -2 -1 ---------- Run | Yrd Mat Sub Mat Fac Low Low Zio Pro Fac Low Low Dat Pro Fac Ext Cet Fac Was Fac Upp Upp Zhi Pro Res Res Tes Acc Machines Disabled 28 | . . 1 2 . . . . 1 . 1 . . . 4 7 . . . 6 . . . . . . 5 1 Max in Single Turn 5 | . . 1 2 . . . . . . 1 . . . 1 2 . . . 5 . . . . . . 1 1 Garrison Access 2 | . . . . 1 . . . . . . . . . . . . . . 1 . . . . . . . . Energy Cycler 4 | . . . . . . . . . . . . . . . 4 . . . . . . . . . . . . Machines Repaired . | . . . . . . . . . . . . . . . . . . . . . . . . . . . . Machines Dismantled . | . . . . . . . . . . . . . . . . . . . . . . . . . . . . Machines Sabotaged . | . . . . . . . . . . . . . . . . . . . . . . . . . . . . Overloaded Fab Kills . | . . . . . . . . . . . . . . . . . . . . . . . . . . . . Hacking | -11 -10 -10 -8 -7 -7 -7 -7 -6 -6 -6 -6 -6 -5 -5 -5 -5 -4 -4 -4 -4 -4 -4 -3 -3 -2 -2 -1 --------- Run | Yrd Mat Sub Mat Fac Low Low Zio Pro Fac Low Low Dat Pro Fac Ext Cet Fac Was Fac Upp Upp Zhi Pro Res Res Tes Acc Machines Accessed 49 | . 1 2 2 4 . . . . 2 2 . 4 . 2 3 3 4 . 4 1 2 4 . 4 1 3 1 Terminals 26 | . 1 . 2 3 . . . . 2 . . . . 1 3 3 2 . 2 1 . . . 3 . 2 1 Fabricators 3 | . . . . . . . . . . . . . . . . . . . 1 . . . . 1 1 . . Repair Stations 1 | . . . . . . . . . . . . . . . . . 1 . . . . . . . . . . Recycling Units . | . . . . . . . . . . . . . . . . . . . . . . . . . . . . Scanalyzers 1 | . . . . . . . . . . . . . . . . . 1 . . . . . . . . . . Garrison Access 4 | . . . . 1 . . . . . . . . . 1 . . . . 1 . . . . . . 1 . Total Hacks 143 | . 2 5 8 9 . . . . 7 8 . 32 . 3 7 5 7 . 9 1 6 17 . 7 1 7 2 Successful 92 | . 1 5 3 3 . . . . 1 8 . 32 . 1 4 3 1 . 3 1 6 17 . 2 . . 1 Failed 51 | . 1 . 5 6 . . . . 6 . . . . 2 3 2 6 . 6 . . . . 5 1 7 1 Catastrophic 22 | . . . 1 1 . . . . 3 . . . . 1 1 1 4 . 2 . . . . 2 1 4 1 Database Lockouts . | . . . . . . . . . . . . . . . . . . . . . . . . . . . . Manual 18 | . 2 2 5 1 . . . . . . . . . . 1 . 1 . 2 . . . . 3 . . 1 Terminals 59 | . 2 . 8 7 . . . . 7 . . . . 2 7 5 2 . 5 1 . . . 5 . 6 2 Fabricators 5 | . . . . . . . . . . . . . . . . . . . 2 . . . . 2 1 . . Repair Stations 4 | . . . . . . . . . . . . . . . . . 4 . . . . . . . . . . Recycling Units . | . . . . . . . . . . . . . . . . . . . . . . . . . . . . Scanalyzers 1 | . . . . . . . . . . . . . . . . . 1 . . . . . . . . . . Garrison Access 6 | . . . . 2 . . . . . . . . . 1 . . . . 2 . . . . . . 1 . Terminal Hacks 81 | . . 5 2 1 . . . . 1 8 . 32 . 1 3 3 . . 1 1 6 17 . . . . . Record 35 | . . 4 . . . . . . . 7 . 11 . . . 2 . . . 1 5 5 . . . . . Part Schematic 15 | . . . . . . . . . . . . 11 . . . . . . . . . 4 . . . . . Robot Schematic 7 | . . . . . . . . . . . . 7 . . . . . . . . . . . . . . . Robot Analysis 4 | . . . . . . . . . . . . . . . . . . . . . . 4 . . . . . Prototype ID Bank 7 | . . . . . . . . . . . . 3 . . . . . . . . . 4 . . . . . Open Door 5 | . . . . . . . . . . 1 . . . 1 1 1 . . . . 1 . . . . . . Branch Access Points 2 | . . . . . . . . . 1 . . . . . . . . . 1 . . . . . . . . Unreport Threat 3 | . . . 1 . . . . . . . . . . . 2 . . . . . . . . . . . . Locate Traps 1 | . . . 1 . . . . . . . . . . . . . . . . . . . . . . . . Hauler Manifests 1 | . . . . 1 . . . . . . . . . . . . . . . . . . . . . . . Derelict Proto ID Bank 1 | . . 1 . . . . . . . . . . . . . . . . . . . . . . . . . Fabricator Hacks 4 | . . . . . . . . . . . . . . . . . . . 2 . . . . 2 . . . Load Schematic 2 | . . . . . . . . . . . . . . . . . . . 1 . . . . 1 . . . Build 2 | . . . . . . . . . . . . . . . . . . . 1 . . . . 1 . . . Repair Station Hacks 1 | . . . . . . . . . . . . . . . . . 1 . . . . . . . . . . Scan Component 1 | . . . . . . . . . . . . . . . . . 1 . . . . . . . . . . Recycling Unit Hacks . | . . . . . . . . . . . . . . . . . . . . . . . . . . . . Scanalyzer . | . . . . . . . . . . . . . . . . . . . . . . . . . . . . Garrison Access Hacks 1 | . . . . 1 . . . . . . . . . . . . . . . . . . . . . . . Seal Access 1 | . . . . 1 . . . . . . . . . . . . . . . . . . . . . . . Unauthorized Hacks 5 | . 1 . 1 1 . . . . . . . . . . 1 . . . . . . . . . . . 1 Terminals 5 | . 1 . 1 1 . . . . . . . . . . 1 . . . . . . . . . . . 1 Assimilate 1 | . 1 . . . . . . . . . . . . . . . . . . . . . . . . . . Botnet 4 | . . . 1 1 . . . . . . . . . . 1 . . . . . . . . . . . 1 Fabricators . | . . . . . . . . . . . . . . . . . . . . . . . . . . . . Repair Stations . | . . . . . . . . . . . . . . . . . . . . . . . . . . . . Recycling Units . | . . . . . . . . . . . . . . . . . . . . . . . . . . . . Scanalyzers . | . . . . . . . . . . . . . . . . . . . . . . . . . . . . Garrison Access . | . . . . . . . . . . . . . . . . . . . . . . . . . . . . Data Cores Recovered 1 | . . . . . . . . . . . . . . . . . . . . . . . . 1 . . . Used 1 | . . . . . . . . . . . . . . . . . . . . . . . . 1 . . . Hacking Detections 30 | . 1 . 2 4 . . . . 2 . . . . 1 2 1 4 . 3 1 . . . 4 1 3 1 Full Trace Events 5 | . . . . . . . . . 1 . . . . . 1 . . . 1 . . . . 2 . . . Feedback Events . | . . . . . . . . . . . . . . . . . . . . . . . . . . . . Feedback Blocked . | . . . . . . . . . . . . . . . . . . . . . . . . . . . . Robot Schematics Acquired 13 | . . . . . . . 3 . . . . 7 . . . . . . . . . . . . . 3 . Robots Built . | . . . . . . . . . . . . . . . . . . . . . . . . . . . . Authchips . | . . . . . . . . . . . . . . . . . . . . . . . . . . . . Time . | . . . . . . . . . . . . . . . . . . . . . . . . . . . . Total Robot Build Rating . | . . . . . . . . . . . . . . . . . . . . . . . . . . . . Part Schematics Acquired 44 | . . . . . . . 15 . . . . 11 . . . . . . . . . 4 . . . 14 . Parts Built 1 | . . . . . . . . . . . . . . . . . . . 1 . . . . . . . . Authchips . | . . . . . . . . . . . . . . . . . . . . . . . . . . . . Time 236 | . . . . . . . . . . . . . . . . . . . 84 . . . . 152 . . . Total Part Build Rating 6 | . . . . . . . . . . . . . . . . . . . 6 . . . . . . . . Parts Repaired . | . . . . . . . . . . . . . . . . . . . . . . . . . . . . Time . | . . . . . . . . . . . . . . . . . . . . . . . . . . . . Parts Recycled . | . . . . . . . . . . . . . . . . . . . . . . . . . . . . Recycled Matter . | . . . . . . . . . . . . . . . . . . . . . . . . . . . . Retrieved Matter . | . . . . . . . . . . . . . . . . . . . . . . . . . . . . Retrieved Components . | . . . . . . . . . . . . . . . . . . . . . . . . . . . . Parts Scanalyzed . | . . . . . . . . . . . . . . . . . . . . . . . . . . . . Part Schematics Acquired . | . . . . . . . . . . . . . . . . . . . . . . . . . . . . Parts Damaged . | . . . . . . . . . . . . . . . . . . . . . . . . . . . . Bothacking | -11 -10 -10 -8 -7 -7 -7 -7 -6 -6 -6 -6 -6 -5 -5 -5 -5 -4 -4 -4 -4 -4 -4 -3 -3 -2 -2 -1 ------------ Run | Yrd Mat Sub Mat Fac Low Low Zio Pro Fac Low Low Dat Pro Fac Ext Cet Fac Was Fac Upp Upp Zhi Pro Res Res Tes Acc Used RIF Installer . | . . . . . . . . . . . . . . . . . . . . . . . . . . . . Robots Hacked . | . . . . . . . . . . . . . . . . . . . . . . . . . . . . Non-combat . | . . . . . . . . . . . . . . . . . . . . . . . . . . . . Combat . | . . . . . . . . . . . . . . . . . . . . . . . . . . . . Robot Hacks Applied . | . . . . . . . . . . . . . . . . . . . . . . . . . . . . Relay Couplers Released 1 | . . . . . . . . . . . . . . . . . . . 1 . . . . . . . . Machine Destruction 1 | . . . . . . . . . . . . . . . . . . . 1 . . . . . . . . Fabnet Peak Effective % . | . . . . . . . . . . . . . . . . . . . . . . . . . . . . Robots Rewired 14 | . . . . . . . . . . . . . . . 14 . . . . . . . . . . . . Allies Hacked . | . . . . . . . . . . . . . . . . . . . . . . . . . . . . Hacks Repelled . | . . . . . . . . . . . . . . . . . . . . . . . . . . . . Allies | -11 -10 -10 -8 -7 -7 -7 -7 -6 -6 -6 -6 -6 -5 -5 -5 -5 -4 -4 -4 -4 -4 -4 -3 -3 -2 -2 -1 -------- Run | Yrd Mat Sub Mat Fac Low Low Zio Pro Fac Low Low Dat Pro Fac Ext Cet Fac Was Fac Upp Upp Zhi Pro Res Res Tes Acc Total Allies 25 | . 1 . . . . . 4 . . . . . . . 17 . . 1 . . 2 . . . . . . Largest Group 13 | . 1 . . . . . 4 4 . . . . . . 13 3 . 1 . . 2 . . . . . . Highest-Rated Group 342 | . 10 . . . . . 121 121 . . . . . . 342 90 . 46 . . 58 . . . . . . Highest-Rated Ally 46 | . 10 . . . . . 39 39 . . . . . . 39 39 . 46 . . 29 . . . . . . Total Orders 3 | . . . . . . . . . . . . . . . . . . . . 3 . . . . . . . RETURN 3 | . . . . . . . . . . . . . . . . . . . . 3 . . . . . . . Ally Attacks 172 | . . . . . . . . 26 . . . . . . 103 5 . 16 . 22 . . . . . . . Total Damage 3615 | . . . . . . . . 447 . . . . . . 2276 89 . 482 . 321 . . . . . . . Kills 26 | . . . . . . . . 5 . . . . . . 20 . . . . 1 . . . . . . . Allies Corrupted . | . . . . . . . . . . . . . . . . . . . . . . . . . . . . Allies Melted 1 | . . . . . . . . . . . . . . . 1 . . . . . . . . . . . . Intel | -11 -10 -10 -8 -7 -7 -7 -7 -6 -6 -6 -6 -6 -5 -5 -5 -5 -4 -4 -4 -4 -4 -4 -3 -3 -2 -2 -1 ------- Run | Yrd Mat Sub Mat Fac Low Low Zio Pro Fac Low Low Dat Pro Fac Ext Cet Fac Was Fac Upp Upp Zhi Pro Res Res Tes Acc Robot Analysis Total 4 | . . . . . . . . . . . . . . . . . . . . . . 4 . . . . . Derelict Logs Recovered 8 | . . 1 . . . . 1 . . 2 2 . 1 . . . . . . 1 . . . . . . . Drone Launches 3 | . . . . . . . . . . . . . . . . . . . . 3 . . . . . . . Drone Recoveries 3 | . . . . . . . . . . . . . . . . . . . . 3 . . . . . . . Exploration | -11 -10 -10 -8 -7 -7 -7 -7 -6 -6 -6 -6 -6 -5 -5 -5 -5 -4 -4 -4 -4 -4 -4 -3 -3 -2 -2 -1 ------------- Run | Yrd Mat Sub Mat Fac Low Low Zio Pro Fac Low Low Dat Pro Fac Ext Cet Fac Was Fac Upp Upp Zhi Pro Res Res Tes Acc Turns Passed 25878 | 120 1329 1914 932 993 677 635 1559 483 571 1032 781 175 600 1306 2028 706 419 240 1576 1301 899 403 767 2026 416 1235 755 Spaces Moved 12435 | 68 706 1140 370 535 384 344 942 281 236 570 478 110 239 436 658 241 232 107 538 704 435 194 311 985 226 568 397 Core 22 | 22 . . . . . . . . . . . . . . . . . . . . . . . . . . . Treads 8217 | . . 1140 370 535 384 344 942 281 236 570 478 110 239 436 649 241 232 107 538 385 . . . . . . . Legs 4196 | 46 706 . . . . . . . . . . . . . 9 . . . . 319 435 194 311 985 226 568 397 Wheels . | . . . . . . . . . . . . . . . . . . . . . . . . . . . . Hover . | . . . . . . . . . . . . . . . . . . . . . . . . . . . . Flight . | . . . . . . . . . . . . . . . . . . . . . . . . . . . . Fastest Speed 50 | 50 120 160 160 160 160 160 160 160 160 160 160 160 160 240 240 240 163 163 145 120 120 190 187 120 120 111 108 Average Speed 174 | 119 162 160 160 160 160 160 160 160 165 160 160 160 212 261 268 242 163 163 186 148 189 190 188 188 126 145 116 Slowest Speed 750 | 150 190 160 160 160 160 160 160 160 240 160 160 160 240 560 750 245 163 163 240 240 190 190 262 190 190 190 180 Overloaded Moves . | . . . . . . . . . . . . . . . . . . . . . . . . . . . . Propulsion Burnouts . | . . . . . . . . . . . . . . . . . . . . . . . . . . . . Robots Hopped 1 | . . . . . . . 1 . . . . . . . . . . . . . . . . . . . . Cave-ins Triggered 2 | . . . . . . . . . . . . . . . 1 . . . . . . . . . . . 1 Teleports 1 | . . . . . . . . . . . . . . . . . . . . . . . . 1 . . . Exploration Rate (%) 44 | 5 97 58 26 14 53 42 83 52 6 61 65 75 45 9 63 84 6 76 15 69 60 60 43 29 8 40 10 Regions Visited 27 Branch Regions 16 Pre-discovered Areas 11 | . . 3 . . . . 1 . . 2 . 1 . . . . . . . 1 . 3 . . . . . Known Exits Taken 14 | . . . . 1 1 1 1 1 1 1 1 1 1 . . . . . 1 . . . . 1 1 1 . Unknown Exits Taken 11 | 1 1 1 1 . . . . . . . . . . 1 1 1 . . . 1 1 1 1 . . . . Scrap Searched 28 | . . 10 . . 1 1 3 . . 1 3 . . . . . . . . 5 3 . 1 . . . . Spaces Dug 86 | . . . 2 3 1 . . 3 4 6 . . 4 8 11 . . . 2 3 . . . 8 1 20 10 Terrain Destroyed 395 | . 2 1 6 4 2 37 . 3 11 6 . . 9 13 100 . . . 125 5 . . 32 8 1 20 10 Melee 35 | . . . . 1 . . . . . 6 . . . . . . . . . . . . . 8 1 12 7 Projectile 155 | . . 1 6 3 2 . . 3 11 . . . 9 13 37 . . . 54 5 . . . . . 8 3 AOE 205 | . 2 . . . . 37 . . . . . . . . 63 . . . 71 . . . 32 . . . . Terrain Rammed . | . . . . . . . . . . . . . . . . . . . . . . . . . . . . Walls Destroyed . | . . . . . . . . . . . . . . . . . . . . . . . . . . . . Machines Disabled . | . . . . . . . . . . . . . . . . . . . . . . . . . . . . Actions | -11 -10 -10 -8 -7 -7 -7 -7 -6 -6 -6 -6 -6 -5 -5 -5 -5 -4 -4 -4 -4 -4 -4 -3 -3 -2 -2 -1 --------- Run | Yrd Mat Sub Mat Fac Low Low Zio Pro Fac Low Low Dat Pro Fac Ext Cet Fac Was Fac Upp Upp Zhi Pro Res Res Tes Acc Total 15347 | 87 816 1206 619 633 423 413 994 309 368 664 491 109 279 539 864 303 266 137 846 901 475 221 426 1123 326 867 642 Wait 1072 | . 46 15 163 16 17 46 28 22 74 60 2 . 4 14 19 6 7 3 103 119 2 . 45 12 46 90 113 Move 12405 | 67 705 1139 369 534 383 343 939 280 235 569 477 109 238 435 656 240 232 106 537 703 434 193 310 984 225 567 396 Hop 1 | . . . . . . . 1 . . . . . . . . . . . . . . . . . . . . Pick Up 248 | 5 11 11 12 15 3 2 6 . 6 9 4 . . 9 16 13 6 5 21 12 10 6 7 24 8 21 6 Fast Attach 120 | 7 3 1 6 . . . 1 . . . . . . 5 13 1 5 2 16 6 4 6 5 19 2 10 8 Attach 161 | . . 1 5 3 1 . 2 . 4 5 2 . 5 9 9 7 3 . 28 17 . 1 10 6 11 16 16 Detach 45 | . . . 3 . . . 2 . . . . . . . 3 . 3 1 4 3 . . . 7 6 7 6 Swap 149 | . 4 7 7 11 3 6 5 . 12 2 2 . 3 4 6 2 1 . 12 5 1 . 4 15 1 15 21 Drop 217 | . 7 15 7 20 . 2 9 . 1 1 2 . . 4 18 10 6 7 3 8 4 9 6 35 2 25 16 Fire 536 | 8 39 17 47 33 11 4 . 7 36 8 1 . 29 55 42 24 3 13 122 14 . . 3 . . 17 3 Melee 303 | . . . . 1 5 10 1 . . 10 1 . . 4 1 . . . . 14 20 6 36 21 25 91 57 Ram . | . . . . . . . . . . . . . . . . . . . . . . . . . . . . Kick 1 | . 1 . . . . . . . . . . . . . . . . . . . . . . . . . . Crush . | . . . . . . . . . . . . . . . . . . . . . . . . . . . . Escape Stasis 13 | . . . . . . . . . . . . . . . 5 . . . . . . . . . . 8 . Rewire 76 | . . . . . . . . . . . . . . . 76 . . . . . . . . . . . . Trap . | . . . . . . . . . . . . . . . . . . . . . . . . . . . . Miscellaneous . | . . . . . . . . . . . . . . . . . . . . . . . . . . . . Route ------- -11/Scrapyard -10/Materials (discovered 6 exits: [*Mat x3] / [*Min x2] / *Sub) -10/Subcaves -8/Materials -7/Factory (discovered 2 exits: *Low x2) -7/Lower Caves -7/Lower Caves -7/Zion -6/Proximity Caves -6/Factory (discovered 2 exits: *Low x2) -6/Lower Caves -6/Lower Caves (discovered 2 exits: *Fac / *Dat) -6/Data Miner -5/Proximity Caves -5/Factory (discovered 2 exits: Upp / *Ext) -5/Extension (discovered 2 exits: *Fac / *Cet) -5/Cetus (discovered 2 exits: *Fac / [*Arc]) -4/Factory -4/Waste -4/Factory (discovered 2 exits: *Upp x2) -4/Upper Caves -4/Upper Caves -4/Zhirov -3/Proximity Caves -3/Research (discovered 2 exits: *Res x2) -2/Research (discovered 2 exits: *Acc / *Tes) -2/Testing -1/Access To Epsilon Eridani History --------- Turn | Location | Event 24 | -11/Scrapyard | Discovered new exit (range 16) 121 | -11/Scrapyard | Entered Materials 274 | -10/Materials | Discovered new exit (range 13) 316 | -10/Materials | Build established: Mutant 413 | -10/Materials | Discovered new exit (range 6) 556 | -10/Materials | Discovered new exit (range 13) 974 | -10/Materials | Discovered new exit (range 15) 1311 | -10/Materials | Discovered new exit (range 6) 1441 | -10/Materials | Discovered new exit (range 6) 1450 | -10/Materials | Entered Subcaves 1964 | -10/Subcaves | Visited 4L-MR0's lab 1979 | -10/Subcaves | Found Powered Cannon 2089 | -10/Subcaves | Disturbed a concealed Subdweller 2122 | -10/Subcaves | Visited Clippyterm 2127 | -10/Subcaves | Learned location of Section 7 (-2) 2127 | -10/Subcaves | Learned location of Deep Caves (-7) 2368 | -10/Subcaves | Learned location of Zion (-7) 3327 | -10/Subcaves | Discovered new exit (range 10) 3364 | -10/Subcaves | Entered Materials 3364 | -8/Materials | Evolved 4 slots: Propulsion x1, Utility x3 4074 | -8/Materials | Discovered new exit (range 11) 4296 | -8/Materials | Entered Factory 4296 | -7/Factory | Evolved 2 slots: Propulsion x1, Utility x1 4443 | -7/Factory | Build established: Scavenger-Mutant 4708 | -7/Factory | Discovered new exit (range 15) 4835 | -7/Factory | Identified exit to Lower Caves 5154 | -7/Factory | Discovered exit to Lower Caves (range 16) 5289 | -7/Factory | Entered Lower Caves 5494 | -7/Lower Caves | Build established: Mutant 5944 | -7/Lower Caves | Discovered new exit (range 13) 5964 | -7/Lower Caves | Identified exit to Lower Caves 5966 | -7/Lower Caves | Entered another Lower Caves area 6318 | -7/Lower Caves | Build established: Assassin 6499 | -7/Lower Caves | Discovered new exit (range 9) 6510 | -7/Lower Caves | Identified exit to Zion 6601 | -7/Lower Caves | Entered Zion 6762 | -7/Zion | System corruption cleaned by Quarantine Array 6820 | -7/Zion | Discovered new exit (range 12) 6831 | -7/Zion | Visited the Megawrench Repair Shop 7039 | -7/Zion | Learned location of Extension (-5) 7137 | -7/Zion | Learned Factory terminal intel 7241 | -7/Zion | Build established: Scavenger-Assassin 7671 | -7/Zion | Gained Derelict followers 7906 | -7/Zion | Attached Powered Cannon, gained temporary slot: Power 7922 | -7/Zion | Found Prototype Special Weapon 7925 | -7/Zion | Found Prototype Special Weapon 7928 | -7/Zion | Found Prototype Special Weapon 7930 | -7/Zion | Found Prototype Special Weapon 7997 | -7/Zion | Found Prototype Energy Gun 8132 | -7/Zion | Megawrench repaired 8 parts 8158 | -7/Zion | Identified exit to Proximity Caves 8160 | -7/Zion | Entered Proximity Caves 8160 | -6/Proximity Caves | Accompanied by 4 allies 8199 | -6/Proximity Caves | Build established: Scavenger-Skirmisher 8628 | -6/Proximity Caves | Lost 3 allies 8637 | -6/Proximity Caves | Discovered new exit (range 4) 8641 | -6/Proximity Caves | Identified exit to Factory 8643 | -6/Proximity Caves | Entered Factory 8643 | -6/Factory | Evolved 2 slots: Utility x1, Weapon x1 8644 | -6/Factory | Loaded intel: 26 terminal locations 8779 | -6/Factory | Identified exit to Lower Caves 8960 | -6/Factory | Build established: Scavenger-Assassin 9214 | -6/Factory | Entered Lower Caves 9303 | -6/Lower Caves | Lost 5 parts (3n1u1w) 9306 | -6/Lower Caves | Found Alien Artifact 9550 | -6/Lower Caves | Build established: Mutant 9622 | -6/Lower Caves | Learned Research trap positions 9622 | -6/Lower Caves | Learned Research stockpile data 9622 | -6/Lower Caves | Learned Extension stockpile data 9622 | -6/Lower Caves | Learned Factory security intel 9622 | -6/Lower Caves | Learned Armory garrison access intel 9622 | -6/Lower Caves | Learned Extension garrison access intel 10063 | -6/Lower Caves | Encountered a Warlord checkpoint 10165 | -6/Lower Caves | Discovered new exit (range 5) 10186 | -6/Lower Caves | Identified exit to Lower Caves 10246 | -6/Lower Caves | Entered another Lower Caves area 10257 | -6/Lower Caves | Encountered a Warlord checkpoint 10259 | -6/Lower Caves | Discovered new exit (range 15) 10283 | -6/Lower Caves | Identified exit to Factory 10434 | -6/Lower Caves | Learned Factory emergency access door positions 10455 | -6/Lower Caves | Learned 12 Factory zone layouts 11003 | -6/Lower Caves | Discovered new exit (range 14) 11025 | -6/Lower Caves | Identified exit to Data Miner 11027 | -6/Lower Caves | Entered Data Miner 11027 | -6/Data Miner | Discovered new exit (range 6) 11058 | -6/Data Miner | Met Data Miner 11115 | -6/Data Miner | Acquired the access code to Warlord's prototype stash 11130 | -6/Data Miner | Received God Mode back door access code from Data Miner 11200 | -6/Data Miner | Identified exit to Proximity Caves 11202 | -6/Data Miner | Entered Proximity Caves 11419 | -5/Proximity Caves | Lost 5 parts (1p1n1u2w) 11639 | -5/Proximity Caves | Learned 4 Factory zone layouts 11716 | -5/Proximity Caves | Build established: Skirmisher 11751 | -5/Proximity Caves | Discovered exit to Factory (range 16) 11802 | -5/Proximity Caves | Entered Factory 11802 | -5/Factory | Evolved 2 slots: Power x1, Weapon x1 11803 | -5/Factory | Identified exit to Upper Caves 12231 | -5/Factory | Discovered new exit (range 15) 12583 | -5/Factory | Lost 3 parts (2n1u) 12848 | -5/Factory | Build established: Gunner 12922 | -5/Factory | System corruption reached 10% 12969 | -5/Factory | Lost 5 parts (1p2n1u1w) 13108 | -5/Factory | Entered Extension 13484 | -5/Extension | Energy Cycler disabled 13484 | -5/Extension | Rescued a captive Derelict 13485 | -5/Extension | Rescued a captive Derelict 13485 | -5/Extension | Rescued a captive Derelict 13485 | -5/Extension | Rescued a captive Derelict 13489 | -5/Extension | Rescued a captive Derelict 13506 | -5/Extension | Lost 3 parts (1u2w) 13775 | -5/Extension | Build established: Mutant 14048 | -5/Extension | Lost 4 allies 14093 | -5/Extension | Build established: Commander-Gunner 14181 | -5/Extension | Crushed by falling debris 14295 | -5/Extension | Lost 5 allies 14493 | -5/Extension | Build established: Scavenger-Gunner 15061 | -5/Extension | Discovered new exit (range 10) 15063 | -5/Extension | Discovered new exit (range 6) 15097 | -5/Extension | Identified Storm Laser 15136 | -5/Extension | Entered Cetus 15136 | -5/Cetus | Accompanied by 3 allies 15166 | -5/Cetus | Spotted Cetus Guard 15166 | -5/Cetus | Spotted Cetus Guard 15172 | -5/Cetus | Destroyed Cetus Guard 15173 | -5/Cetus | Spotted Cetus Guard 15184 | -5/Cetus | Destroyed Cetus Guard 15191 | -5/Cetus | Spotted Cetus Guard 15214 | -5/Cetus | Lost 3 allies 15218 | -5/Cetus | Destroyed Cetus Guard 15225 | -5/Cetus | Destroyed Cetus Guard 15242 | -5/Cetus | Lost 4 parts (1p2n1u) 15423 | -5/Cetus | Build established: Scavenger-Tank 15691 | -5/Cetus | Discovered new exit (range 15) 15738 | -5/Cetus | Spotted Cetus Guard 15738 | -5/Cetus | Spotted Cetus Guard 15742 | -5/Cetus | Spotted Cetus Guard 15756 | -5/Cetus | Spotted Cetus Guard 15766 | -5/Cetus | Destroyed Cetus Guard 15777 | -5/Cetus | Destroyed Cetus Guard 15780 | -5/Cetus | Destroyed Cetus Guard 15782 | -5/Cetus | Core integrity fell below 50% 15789 | -5/Cetus | Destroyed Cetus Guard 15800 | -5/Cetus | Discovered new exit (range 16) 15802 | -5/Cetus | Lost 3 parts (1p1n1u) 15813 | -5/Cetus | Met Revision 17 15842 | -5/Cetus | Entered Factory 15842 | -4/Factory | Evolved 2 slots: Propulsion x1, Utility x1 16261 | -4/Factory | Sucked down chute 16261 | -4/Factory | Entered Waste 16262 | -4/Waste | Met a frightened Derelict 16276 | -4/Waste | EMP discharged 16306 | -4/Waste | Spotted C-40 Crusher 16321 | -4/Waste | Spotted C-40 Crusher 16330 | -4/Waste | Spotted C-40 Crusher 16332 | -4/Waste | Spotted C-40 Crusher 16335 | -4/Waste | Spotted C-40 Crusher 16335 | -4/Waste | Destroyed C-40 Crusher 16343 | -4/Waste | Destroyed C-40 Crusher 16360 | -4/Waste | Destroyed C-40 Crusher 16372 | -4/Waste | Spotted C-40 Crusher 16375 | -4/Waste | Destroyed C-40 Crusher 16376 | -4/Waste | EMP discharged 16376 | -4/Waste | System corruption reached 10% 16390 | -4/Waste | Destroyed C-40 Crusher 16476 | -4/Waste | EMP discharged 16480 | -4/Waste | Discovered new exit (range 12) 16501 | -4/Waste | Entered Factory 16722 | -4/Factory | Fabricated Combat Drone Bay (x1) 16751 | -4/Factory | First assault squad dispatched 16760 | -4/Factory | Spotted B-86 Titan 17088 | -4/Factory | Lost 16 parts (1p3n8u4w) 17095 | -4/Factory | Identified RU-N14's Throwing Claymores (x4) 17553 | -4/Factory | Destroyed 8 combat bots 17573 | -4/Factory | Lost 3 parts (2u1w) 17731 | -4/Factory | System corruption reached 30% 17899 | -4/Factory | Identified exit to Upper Caves 17987 | -4/Factory | Destroyed 7 combat bots 17988 | -4/Factory | Lost 4 parts (2n1u1w) 18077 | -4/Factory | Entered Upper Caves 18255 | -4/Upper Caves | Learned location of Armory (-3) 18371 | -4/Upper Caves | Build established: Scavenger-Skirmisher 18601 | -4/Upper Caves | Attracted the attention of an 0b10 checkpoint 18887 | -4/Upper Caves | Lost 4 parts (1p2n1w) 18890 | -4/Upper Caves | Core integrity fell below 50% 18939 | -4/Upper Caves | Spotted B-86 Titan 19115 | -4/Upper Caves | Lost 5 parts (1p1n2u1w) 19366 | -4/Upper Caves | Discovered new exit (range 3) 19373 | -4/Upper Caves | Build established: Scavenger-Mutant 19378 | -4/Upper Caves | Entered another Upper Caves area 19551 | -4/Upper Caves | Ambushed by wild Derelicts 20091 | -4/Upper Caves | Discovered new exit (range 15) 20201 | -4/Upper Caves | A Commander dispatched an escort 20222 | -4/Upper Caves | Learned Research security intel 20222 | -4/Upper Caves | Learned Extension trap positions 20277 | -4/Upper Caves | Entered Zhirov 20277 | -4/Zhirov | Accompanied by 2 allies 20277 | -4/Zhirov | Discovered new exit (range 3) 20278 | -4/Zhirov | Commander's escort returned to base 20278 | -4/Zhirov | Commander's escort returned to base 20403 | -4/Zhirov | Learned location of Quarantine (-3) 20403 | -4/Zhirov | Learned location of Testing (-2) 20403 | -4/Zhirov | Learned location of Command (-1) 20448 | -4/Zhirov | Identified Core Expander 20448 | -4/Zhirov | Installed Core Expander, added new Power slot 20461 | -4/Zhirov | Found Alien Artifact 20461 | -4/Zhirov | Identified Integrated Dissipator 20461 | -4/Zhirov | Installed Integrated Dissipator, increased core heat dissipation (+20) 20483 | -4/Zhirov | Found Alien Artifact 20680 | -4/Zhirov | Entered Proximity Caves 20683 | -3/Proximity Caves | Attracted the attention of an 0b10 checkpoint 20897 | -3/Proximity Caves | Lost 5 parts (4n1u) 21066 | -3/Proximity Caves | Lost 3 parts (2p1u) 21108 | -3/Proximity Caves | Core integrity fell below 20% 21398 | -3/Proximity Caves | Discovered new exit (range 15) 21447 | -3/Proximity Caves | Entered Research 21447 | -3/Research | Evolved 2 slots: Propulsion x1, Utility x1 21448 | -3/Research | Loaded intel: 100 trap records 21647 | -3/Research | Revision forces began assault on 0b10 21722 | -3/Research | Found Unknown Launcher 21723 | -3/Research | Met up with Revision 17++ 22147 | -3/Research | Research terminal network offline 22374 | -3/Research | Spotted Striker 22599 | -3/Research | Spotted Striker 22599 | -3/Research | Spotted Executioner 22617 | -3/Research | Build established: Scavenger-Assassin 22635 | -3/Research | Lost 3 allies 22705 | -3/Research | Found Unknown Piercing Weapon 22705 | -3/Research | Identified Enh. Force Lance 22709 | -3/Research | Found Enh. Force Lance 22712 | -3/Research | Identified Fusion Bomb Launcher 22930 | -3/Research | Discovered new exit (range 15) 22957 | -3/Research | Identified exit to Research 22977 | -3/Research | Found Prototype Hackware 23263 | -3/Research | Discovered exit to Research (range 13) 23263 | -3/Research | Spotted Striker 23264 | -3/Research | Spotted Striker 23270 | -3/Research | Identified Transdimensional Reconstructor 23270 | -3/Research | Warped through subspace 23291 | -3/Research | Lost 4 allies 23447 | -3/Research | Spotted Striker 23473 | -3/Research | Entered another Research area 23473 | -2/Research | Evolved 2 slots: Utility x2 23644 | -2/Research | Identified Exp. Hacking Suite 23751 | -2/Research | Build established: Scavenger-Gladiator 23801 | -2/Research | Discovered new exit (range 5) 23810 | -2/Research | Identified exit to Access 23860 | -2/Research | Discovered new exit (range 3) 23887 | -2/Research | Identified exit to Testing 23889 | -2/Research | Entered Testing 24021 | -2/Testing | Spotted Alpha 7 24079 | -2/Testing | Destroyed Alpha 7 24415 | -2/Testing | Spotted Striker 24415 | -2/Testing | Spotted Striker 24562 | -2/Testing | Spotted Alpha 7 24565 | -2/Testing | Scanned by Researcher 24571 | -2/Testing | Destroyed Alpha 7 24604 | -2/Testing | Destroyed Striker 24643 | -2/Testing | Found Prototype Processor 24643 | -2/Testing | Identified Exp. Targeting Computer 24653 | -2/Testing | Stole the SGEMP Prototype 24686 | -2/Testing | Destroyed Striker 24726 | -2/Testing | Lost 5 parts (1p4u) 24927 | -2/Testing | Found Portable AFG 25003 | -2/Testing | Discovered exit to Access (range 10) 25124 | -2/Testing | Entered Access 25124 | -1/Access | Evolved 2 slots: Utility x2 25301 | -1/Access | Found Prototype Launcher 25301 | -1/Access | Identified Tactical Quantum Warhead 25307 | -1/Access | Found Tactical Quantum Warhead 25313 | -1/Access | Found Prototype Device 25314 | -1/Access | Identified Exp. Shield Generator 25317 | -1/Access | Found Exp. Shield Generator 25321 | -1/Access | Found Exp. Shield Generator 25484 | -1/Access | System corruption reached 10% 25548 | -1/Access | Spotted B-99 Colossus 25551 | -1/Access | Spotted B-99 Colossus 25563 | -1/Access | Crushed by falling debris 25594 | -1/Access | Lost 3 parts (2u1w) 25778 | -1/Access | Discovered new exit (range 5) 25783 | -1/Access | Identified exit to Surface 25858 | -1/Access | Lost 5 parts (4n1u) 25879 | *** | Escaped! Last Messages --------------- 25824_ Slug penetrates Sealed Heavy Doors. 25824_ Biometal Leg destroyed. 25825_ B-99 Colossus exits siege mode. 25827_ Lyr. Medium Armor Plating destroyed. 25827_ Penetrated by Slug. 25827_ Slug penetrates Sealed Heavy Doors. 25827_ Penetrated by Slug. 25827_ Slug penetrates Sealed Heavy Doors. 25827_ Penetrated by Slug. 25829_ Slug penetrates Sealed Heavy Doors. 25829_ Penetrated by Slug. 25829_ Slug penetrates Sealed Heavy Doors. 25829_ Acquired 16 matter. 25838_ System corrupted: Substantial component data lost. 25859_ System corrupted: Matter fused (-5). 25874_ ALERT: Rogue bot located, Q-Series report to Access Zone 7I. 25878_ System corrupted: Lyr. Medium Armor Plating fused. Map ----- +----------------------------------------------------+ | ?????????????????????????????????????????????????? | | ?????????????????????????????????????????????????? | | ?????????????????????????????????????????????????? | | ?????????????????????????????????????????????????? | | ?????????????????????????????????????????????????? | | ?????????????????????????????????????????????????? | | ?????????????????????????????????????????????????? | | ?????????????????????????????????????????????????? | | ?????????????????????????????????????????????????? | | ?????????????????????????????????????????????????? | | ?????????????????????????????????????????????????? | | ?????????????????????????????????????????????????? | | ?????????????????????????????????????????????????? | | ?????????????????????????????????????????????????? | | ?????????????????????????????????????????????????? | | ?????????????????????????????????????????????????? | | ?????????????????????????????????????????????????? | | ?????????????????????????????????????????????????? | | ?????????????????????????????????????????????????? | | ?????????????????????????????????????????????????? | | ????????????????????""""""""""""?????????????????? | | ????????????????????# #?????????????????? | | ????????????????????# #?????????????????? | | ????????????????????# " """" #?????????????????? | | ????????????????????# " "??????????????"""""?? | | ????????????????????# " @" "??#???????????""T""?? | | ????????????????????# " "" "? #?????????????????? | | ????????????????????# " " #?????????????????? | | ????????????????????# """ "" #?????????????????? | | ????????????????????# #?????????????????? | | ????????????????????#"""""" """#?????????????????? | | ??????????????????????????"" ""#?????????????????? | | ???????????????????????????"" !#?????????????????? | | ????????????????????#"""""""" "#?????????????????? | | ????????????????????# % %#?????????????????? | | ????????????????????# % % %#?????????????????? | | ????????????????????# % %#?????????????????? | | ????????????????????# #?????????????????? | | ????????????????????# %#?????????????????? | | ????????????????????# #??????????????##?? | | ????????????????????# !!%#??????????????#### | | ????????????????????#### ##############?????# | | ???????????????????"???# #%=%""T""" #?????# | | ??????????????????"""??# #=%""" """ ##?????# | | ?????????????????"""???+ +! = #??????# | | ??????????????????"????# # %! #??????# | | ???????????????????????# # = [ #?????## | | ???????????????????????# # [%!#?????## | | ???????????????????????# # = #?????## | | ???????????????????????# #############??????# | +----------------------------------------------------+ Best States ------------- Heat Dissipation 107 Coolant Potential 100 Energy Generation 72 Energy Capacity 575 Matter Stores 300 Matter Capacity 300 Sight Range 23 Robot Scan Range 18 Terrain Scan Range 20 Terrain Scan Density 210 Jamming Range 16 Cloak Strength 3 Power Amplification 30 Armor Coverage 1125 Resistance: KI 30 Resistance: TH 30 Core Shielding 30 Propulsion Shielding 66 Weapon Shielding 90 Weapon Cycling 15 Melee Speed Boost 50 Phase Shifting 15 Evasion (%) 70 Launcher Accuracy 40 Target Analysis 6 Armor Integrity Analysis 30 Recoil Reduction 5 Particle Charging 15 Offensive Hacking 30 Defensive Hacking 14 Item Schematics ----------------- Gauss Cannon | -7/Zion | Archive Drone Bay | -7/Zion | Archive Thermic Laser | -7/Zion | Archive Kinecellerator | -7/Zion | Archive Lrn. Missile Launcher | -7/Zion | Archive Mak. System Shield | -7/Zion | Archive Imp. Focal Shield | -7/Zion | Archive Antigrav System | -7/Zion | Archive Greatsword | -7/Zion | Archive Enh. Optical Array | -7/Zion | Archive Imp. Titanium Leg | -7/Zion | Archive Imp. Medium Treads | -7/Zion | Archive Med. Treads | -7/Zion | Archive Arm. Leg | -7/Zion | Archive Gravmag System | -7/Zion | Archive Combat Drone Bay | -6/Data Miner | Free Lgt. Regenerative Plating | -6/Data Miner | Free Enh. Flexi-carbon Leg | -6/Data Miner | Free Prc. Energy Filter | -6/Data Miner | Free Neutron Cannon | -6/Data Miner | Free Imp. Gyrokinetic Inverter | -6/Data Miner | Free Adv. Power Amplifier | -6/Data Miner | Free HERF Cannon | -6/Data Miner | Free Adv. System Restoration Module | -6/Data Miner | Free Imp. Armor Integrity Analyzer | -6/Data Miner | Free Q-thruster | -6/Data Miner | Free Assault Drone Bay | -4/Zhirov | Free Exp. Heat Sink | -4/Zhirov | Free Exp. Optical Array | -4/Zhirov | Free Imp. Arc Thrower | -4/Zhirov | Free Adv. KE Penetrator | -2/Testing | Archive Adv. Thermal Defense Suite | -2/Testing | Archive Graviton Cannon | -2/Testing | Archive Cld. Plasma Rifle | -2/Testing | Archive Exp. Biometal Heavy Treads | -2/Testing | Archive Exp. Gyrokinetic Inverter | -2/Testing | Archive Imp. Energy Well | -2/Testing | Archive Hdn. Centrium Heavy Treads | -2/Testing | Archive Exp. Power Amplifier | -2/Testing | Archive Exp. Thermal Shield | -2/Testing | Archive Helical Railgun | -2/Testing | Archive Neutron Missile Launcher | -2/Testing | Archive Imp. Diametric Drive | -2/Testing | Archive Cld. Antigrav System | -2/Testing | Archive Robot Schematics ------------------ M-28 Smith | -7/Zion | Archive B-48 Gladiator | -7/Zion | Archive X-82 Rainmaker | -7/Zion | Archive M-22 Extractor | -6/Data Miner | Free S-27 Virus | -6/Data Miner | Free E-15 Imp | -6/Data Miner | Free A-15 Conveyor | -6/Data Miner | Free B-60 Warrior | -6/Data Miner | Free L-61 Swordsman | -6/Data Miner | Free G-50 Soldier | -6/Data Miner | Free T-07 Excavator | -2/Testing | Archive A-27 Freighter | -2/Testing | Archive R-06 Scavenger | -2/Testing | Archive Fabricated ------------ Combat Drone Bay | x1 | -4/Factory Alien Tech Used ----------------- Core Expander Integrated Dissipator Transdimensional Reconstructor Achievements -------------- Revolutionary Research Challenges ------------ None Game ------ Seed PhasingCompactInjector Manual? 0 Play Time 03:40:57 Cumulative 112.4 hours Start 2024.04.27 @ 13:01:49 End 2024.04.27 @ 16:48:21 Sessions 1 Manual Loads 0 Difficulty Rogue Special Mode None Game No. 94 Rogue 94 Adventurer 0 Explorer 0 Win Type 0 Total 3 Types 2/0/1/0/0/0/0/0/0 Lore% 50 Gallery% 64 Achievement% 51 Wizard Run 0 Options --------- Layout 2 ASCII 0 Keyboard 0 Movement Mouse Keybinds 1 Fullscreen 2 Font 32/SmallcapsGlow Map View 50x44 Zoom Use 0% Tactical HUD 1 Map Filters NONE Filters NONE Steam 1 RUN: 853174b4-9ea2-4c63-8263-1a111c74c759